bitfinex-derivatives/quotes_ETHF0:USTF0_20250616
["timestamp","ask_amount","ask_price","bid_price","bid_amount"]
[1750112189491,53.89737981,2652.2,2652.1,38.56627504]
[1750112189696,53.89737981,2652.2,2652.1,35.55921]
[1750112189895,52.11756981,2652.2,2652.1,35.55921]
[1750112190094,51.19914981,2652.2,2652.1,40.55921]
[1750112190291,49.22465981,2652.2,2652.1,46.83842805]
[1750112190496,44.1309559,2652.2,2652.1,46.83842805]
[1750112190797,42.24643199,2652.2,2652.1,46.83842805]
[1750112191208,41.07060199,2652.2,2652.1,46.83842805]
[1750112191397,39.89845199,2652.2,2652.1,46.83842805]
[1750112191597,38.86316199,2652.2,2652.1,44.30698331]
[1750112191898,37.07603199,2652.2,2652.1,39.30698331]
[1750112192204,37.07603199,2652.2,2652.1,35.55921]
[1750112194400,37.07603199,2652.2,2652.1,5.92921]
[1750112194598,37.07603199,2652.2,2652.1,35.54621]
[1750112196598,37.07603199,2652.2,2652.1,12.12721]
[1750112196805,37.07603199,2652.2,2652.1,35.54321]
[1750112197004,37.07603199,2652.2,2652.1,38.5474549]
[1750112197908,37.07603199,2652.2,2652.1,10.15961]
[1750112198405,37.07603199,2652.2,2652.1,33.57361]
[1750112198800,37.07603199,2652.2,2652.1,36.10505474]
[1750112200609,37.07603199,2652.2,2652.1,39.10929964]
[1750112200802,36.30024199,2652.2,2652.1,39.10929964]
[1750112201009,36.30024199,2652.2,2652.1,36.10505474]
[1750112201309,31.8857078,2652.2,2652.1,47.38427279]
[1750112201806,31.8857078,2652.2,2652.1,44.85282805]
[1750112202008,31.8857078,2652.2,2652.1,39.85282805]
[1750112202407,31.8857078,2652.2,2652.1,10.24082805]
[1750112202608,31.8857078,2652.2,2652.1,39.83182805]
[1750112205411,31.8857078,2652.2,2652.1,37.29638331]
[1750112205706,31.8857078,2652.2,2652.1,36.08005474]
[1750112206911,31.8857078,2652.2,2652.1,37.40795474]
[1750112208009,31.8857078,2652.2,2652.1,6.49305474]
[1750112208311,31.8857078,2652.2,2652.1,36.07705474]
[1750112210819,31.8857078,2652.2,2652.1,10.14161]
[1750112211312,31.8857078,2652.2,2652.1,9.3878]
[1750112211313,32.6395178,2652.2,2652.1,9.3878]
[1750112211616,32.6395178,2652.2,2652.1,32.7878]
[1750112212616,32.6395178,2652.2,2652.1,9.3878]
[1750112212813,32.6395178,2652.2,2652.1,33.54164]
[1750112213010,31.8857078,2652.2,2652.1,33.54164]
[1750112213507,31.8857078,2652.2,2652.1,32.7878]
[1750112213508,32.6395178,2652.2,2652.1,32.7878]
[1750112214017,32.6395178,2652.2,2652.1,33.54164]
[1750112214218,31.8857078,2652.2,2652.1,33.54164]
[1750112214414,31.8857078,2652.2,2652.1,36.07308474]
[1750112215111,31.8857078,2652.2,2652.1,10.14164]
[1750112215317,31.8857078,2652.2,2652.1,33.54064]
[1750112216010,33.8422078,2652.2,2652.1,33.54064]
[1750112216211,32.5241078,2652.2,2652.1,36.07208474]
[1750112216921,31.8857078,2652.2,2652.1,36.07208474]
[1750112219314,31.8857078,2652.2,2652.1,39.08091949]
[1750112220715,31.8857078,2652.2,2652.1,13.15047475]
[1750112220920,31.8857078,2652.2,2652.1,10.14164]
[1750112221122,33.2213078,2652.2,2652.1,33.53564]
[1750112222626,33.2213078,2652.2,2652.1,36.06708474]
[1750112223523,33.2213078,2652.2,2652.1,3.96164]
[1750112223727,33.2213078,2652.2,2652.1,33.53364]
[1750112224023,33.9751178,2652.2,2652.1,32.7798]
[1750112224223,33.9751178,2652.2,2652.1,9.3888]
[1750112224424,33.9751178,2652.2,2652.1,32.7798]
[1750112224624,0.75392,2651.9,2651.8,0.75392]
[1750112224920,0.75392,2651.9,2651.8,30.32492]
[1750112226324,0.75389,2652.0,2651.9,0.75386]
[1750112227617,0.75389,2651.9,2651.8,6.93491]
[1750112227822,3.32279,2651.9,2651.8,6.93491]
[1750112228022,8.32279,2651.9,2651.8,30.32291]
[1750112228218,8.32279,2651.9,2651.8,29.569]
[1750112228520,0.75392,2651.8,2651.7,0.00564919]
[1750112228723,2.00442,2651.8,2651.7,23.39264919]
[1750112228918,7.00442,2651.8,2651.7,0.00564919]
[1750112229223,9.53586474,2651.8,2651.7,0.00564919]
[1750112230020,0.75404,2651.4,2651.3,47.35885]
[1750112230318,3.28548474,2651.4,2651.3,6.181]
[1750112230514,3.28548474,2651.4,2651.0,6.93512]
[1750112230515,0.75415,2651.1,2651.0,6.93512]
[1750112230721,0.75415,2651.1,2651.0,30.32212]
[1750112230927,0.75415,2651.1,2651.0,6.93512]
[1750112231127,0.75415,2651.1,2651.0,30.32212]
[1750112231626,0.75415,2651.1,2651.0,6.93512]
[1750112231827,0.75415,2651.1,2651.0,30.32112]
[1750112232926,0.75411,2651.2,2651.1,0.7541]
[1750112233120,2.06021,2651.2,2651.1,0.7541]
[1750112234128,1.3061,2651.2,2651.1,0.7541]
[1750112234525,2.06019,2651.2,2651.1,0.7541]
[1750112235024,1.3061,2651.2,2651.1,0.7541]
[1750112237226,0.642,2651.3,2651.2,0.75409]
[1750112237427,4.5145,2651.9,2651.5,1.88503]
[1750112237620,5.26842,2651.9,2651.8,0.75392]
[1750112238119,5.26842,2651.9,2651.8,3.28536474]
[1750112238120,3.2078,2651.9,2651.8,3.28536474]
[1750112238327,3.2078,2651.9,2651.8,26.66936474]
[1750112238533,32.6395278,2652.2,2652.1,0.75384]
[1750112238828,31.8857078,2652.2,2652.1,0.75384]
[1750112239234,31.88005861,2652.2,2652.1,0.75384]
[1750112239427,31.88005861,2652.2,2652.1,1.99984]
[1750112243434,31.88005861,2652.2,2652.1,24.13284]
[1750112243733,31.88005861,2652.2,2651.9,4.504]
[1750112243927,32.63387861,2652.2,2652.0,6.165]
[1750112244125,0.669,2652.1,2652.0,29.542]
[1750112244828,1.42284,2652.1,2652.0,29.542]
[1750112245033,0.75386,2652.0,2651.9,3.2078]
[1750112245328,0.75391,2651.9,2651.7,6.91794]
[1750112245532,0.75392,2651.8,2651.7,6.164]
[1750112245734,0.7539,2651.9,2651.7,30.29193]
[1750112245922,0.7539,2651.9,2651.8,0.75392]
[1750112246125,1.2304,2652.0,2651.7,30.29193]
[1750112246333,0.75392,2651.9,2651.7,30.29194]
[1750112246734,0.75392,2651.9,2651.8,0.75392]
[1750112246929,0.75395,2651.8,2651.6,0.75396]
[1750112247130,0.75395,2651.8,2651.7,0.75395]
[1750112247740,0.75394,2651.8,2651.7,0.75392]
[1750112248537,0.75395,2651.7,2651.6,6.91797]
[1750112249331,0.75393,2651.9,2651.8,0.7539]
[1750112251338,0.75395,2651.8,2651.7,0.75394]
[1750112252033,3.8768,2652.1,2651.7,1.88489]
[1750112252240,1.42284,2652.1,2652.0,0.75387]
[1750112252536,31.88005861,2652.2,2652.1,0.75384]
[1750112253326,32.63386861,2652.2,2652.1,0.75384]
[1750112254534,31.88005861,2652.2,2652.1,3.96164]
[1750112254838,31.88005861,2652.2,2652.1,5.19504]
[1750112256633,31.88005861,2652.2,2652.1,28.55904]
[1750112265543,31.88005861,2652.2,2652.1,31.55869284]
[1750112265733,31.88005861,2652.2,2652.1,33.55904]
[1750112266538,31.88005861,2652.2,2652.1,36.55869284]
[1750112266835,31.88005861,2652.2,2652.1,39.0906178]
[1750112267242,30.57906861,2652.2,2652.1,39.0906178]
[1750112267444,28.92539611,2652.2,2652.1,38.62288992]
[1750112267643,25.08569611,2652.2,2652.1,38.62288992]
[1750112267839,11.31877485,2652.2,2652.1,38.62288992]
[1750112268044,6.81579701,2652.2,2652.1,38.62288992]
[1750112268254,5.87298701,2652.2,2652.1,38.62288992]
[1750112268441,3.80122701,2652.2,2652.1,38.62288992]
[1750112268642,3.54922701,2652.2,2652.1,38.62288992]
[1750112268842,2.55512701,2652.2,2652.1,38.62288992]
[1750112269136,2.55512701,2652.2,2652.1,5.19504]
[1750112269334,2.55512701,2652.2,2652.1,37.22096496]
[1750112273541,2.55512701,2652.2,2652.1,13.87296496]
[1750112273741,2.55512701,2652.2,2652.1,13.10745583]
[1750112273943,2.55512701,2652.2,2652.1,33.44964]
[1750112275139,2.55512701,2652.2,2652.1,33.44764]
[1750112275751,3.30893701,2652.2,2652.1,32.6938]
[1750112276052,5.31743701,2652.2,2652.1,29.485]
[1750112277449,0.7539,2651.9,2651.8,6.146]
[1750112277648,0.7539,2651.9,2651.8,29.484]
[1750112277838,0.7539,2651.9,2651.8,6.89992]
[1750112278045,1.2827,2652.0,2651.9,0.75389]
[1750112281149,2.03657,2652.0,2651.9,0.75389]
[1750112281352,1.2827,2652.0,2651.9,0.75389]
[1750112282556,3.97604701,2652.2,2652.1,0.75384]
[1750112282854,5.31844701,2652.2,2652.1,0.75384]
[1750112283247,4.56462701,2652.2,2651.9,23.336]
[1750112283659,4.56462701,2652.2,2652.0,0.75385]
[1750112283852,0.75384,2652.1,2651.9,24.08988]
[1750112284154,1.99684,2652.1,2651.9,24.08988]
[1750112284356,0.75387,2652.0,2651.9,24.08988]
[1750112284857,0.7539,2651.9,2651.8,29.483]
[1750112285055,1.9969,2651.9,2651.8,29.483]
[1750112286058,1.9969,2651.9,2651.8,6.146]
[1750112287660,0.75398,2651.6,2651.5,6.90099]
[1750112287856,0.75398,2651.6,2651.5,30.23399]
[1750112288058,0.75398,2651.6,2651.5,29.48]
[1750112288452,1.41908,2651.6,2651.5,6.147]
[1750112288653,1.41908,2651.6,2651.5,29.479]
[1750112289362,1.41908,2651.6,2651.5,30.23301]
[1750112290358,1.41908,2651.6,2651.5,29.479]
[1750112290557,1.41908,2651.6,2651.5,6.147]
[1750112290758,1.41908,2651.6,2651.5,29.479]
[1750112291757,1.41908,2651.6,2651.5,30.23301]
[1750112292253,1.41908,2651.6,2651.5,30.21701]
[1750112292459,1.41908,2651.6,2651.5,29.463]
[1750112293966,1.41908,2651.6,2651.5,30.21701]
[1750112294367,1.41908,2651.6,2651.5,29.463]
[1750112295867,0.75404,2651.4,2651.3,3.96185]
[1750112296065,0.75404,2651.4,2651.3,33.42385]
[1750112297960,0.6409,2651.8,2651.6,0.75395]
[1750112298166,2.55512701,2652.0,2651.9,0.7539]
[1750112298368,2.55512701,2652.0,2651.9,29.8228161]
[1750112298965,2.55512701,2652.0,2651.9,27.2887]
[1750112299367,2.55512701,2652.0,2651.9,28.5332]
[1750112300156,2.55512701,2652.0,2651.9,33.5332]
[1750112300362,1.53102701,2652.0,2651.9,33.5332]
[1750112300762,0.00564919,2652.6,2652.5,0.75372]
[1750112300963,0.00564919,2652.6,2652.5,38.20730618]
[1750112301168,0.00564919,2652.6,2652.5,33.41852]
[1750112301369,0.00564919,2652.6,2652.5,34.66302]
[1750112303469,0.00564919,2652.6,2652.5,35.27772]
[1750112306373,9.19e-06,2652.6,2652.5,45.06650618]
[1750112306762,1.2864,2653.8,2653.7,0.75338]
[1750112306763,0.6188,2653.8,2653.7,0.75338]
[1750112306963,3.96111,2654.0,2653.7,30.19836]
[1750112307167,3.96111,2654.0,2653.8,0.75333]
[1750112307371,3.96111,2654.0,2653.7,29.445]
[1750112307372,3.2078,2654.3,2653.9,0.75332]
[1750112307574,0.75328,2654.1,2653.8,1.2894]
[1750112307768,0.75890919,2654.2,2654.0,0.75329]
[1750112307974,0.75890919,2654.2,2654.1,0.75327]
[1750112307975,0.00564919,2654.2,2654.1,0.75327]
[1750112308363,5.00564919,2654.2,2654.0,0.75328]
[1750112308575,0.7533,2654.0,2653.9,24.06531]
[1750112308777,0.75328,2654.1,2654.0,0.75329]
[1750112308967,0.00564919,2654.2,2653.9,23.312]
[1750112309672,0.7533,2654.1,2654.0,0.75328]
[1750112310579,9.78878618,2654.1,2653.7,6.13464919]
[1750112310770,0.75335,2653.8,2653.7,6.88799919]
[1750112310975,0.75335,2653.9,2653.8,0.75333]
[1750112311176,0.75332,2654.0,2653.9,0.75329]
[1750112311377,0.75329,2654.1,2654.0,0.75327]
[1750112311574,0.75890919,2654.2,2654.1,0.75327]
[1750112311781,0.00564919,2654.2,2654.1,0.75327]
[1750112312279,0.75888919,2654.2,2654.1,0.75327]
[1750112313278,0.75335,2653.9,2653.8,0.75334]
[1750112313575,0.75335,2653.8,2653.7,6.88800919]
[1750112313777,0.75335,2653.8,2653.7,0.75900919]
[1750112313778,1.43365,2653.8,2653.7,0.75900919]
[1750112314169,1.43365,2653.8,2653.7,0.00564919]
[1750112314372,0.6803,2653.8,2653.7,0.75902919]
[1750112315281,1.43365,2653.8,2653.7,0.75902919]
[1750112315677,1.43365,2653.8,2653.7,0.00564919]
[1750112316180,0.07302325,2654.2,2653.7,0.00564919]
[1750112316377,0.82627325,2654.2,2654.1,0.75327]
[1750112316876,0.07302325,2654.2,2654.1,0.75327]
[1750112317178,0.75888919,2654.2,2654.1,0.75327]
[1750112317374,0.75327,2654.1,2654.0,30.17928]
[1750112317977,0.82627325,2654.2,2654.1,0.75327]
[1750112318582,0.75327,2654.1,2654.0,30.17928]
[1750112319478,0.7533,2654.0,2653.9,0.75331]
[1750112319688,0.7533,2654.0,2653.9,30.17533]
[1750112319881,0.7533,2654.0,2653.9,29.42]
[1750112320080,0.7533,2654.0,2653.9,6.127]
[1750112320386,0.7533,2654.0,2653.7,0.00564919]
[1750112320387,0.75335,2653.8,2653.7,0.00564919]
[1750112321879,1.3032,2654.1,2653.7,0.00564919]
[1750112322182,0.75333,2654.0,2653.9,0.75331]
[1750112322383,2.05649,2654.1,2654.0,0.7533]
[1750112322582,1.42787,2654.1,2654.0,0.7533]
[1750112322979,0.75333,2653.9,2653.8,6.88035]
[1750112323387,0.75333,2653.9,2653.8,30.17035]
[1750112324288,0.75335,2653.8,2653.7,0.75900919]
[1750112324489,0.75335,2653.8,2653.7,30.16100919]
[1750112325178,0.75335,2653.8,2653.7,0.00564919]
[1750112325378,0.75335,2653.8,2653.7,6.11764919]
[1750112325581,0.75335,2653.8,2653.7,0.00564919]
[1750112326490,0.75333,2654.0,2653.7,0.00564919]
[1750112326785,1.42789,2654.1,2654.0,0.7533]
[1750112327288,0.75333,2654.0,2653.9,0.75331]
[1750112327479,0.75335,2653.9,2653.8,0.75333]
[1750112328085,0.75335,2653.8,2653.7,0.75900919]
[1750112328487,0.75335,2653.9,2653.8,0.75332]
[1750112329289,0.6746,2654.1,2653.7,0.00564919]
[1750112329491,0.00564919,2654.2,2654.1,0.75327]
[1750112329492,0.75890919,2654.2,2654.1,0.75327]
[1750112329689,0.75890919,2654.2,2654.1,30.15127]
[1750112330793,0.00564919,2654.2,2654.1,30.15127]
[1750112331384,5.54767537,2654.2,2654.1,6.112]
[1750112331590,0.75335,2653.8,2653.7,0.00564919]
[1750112332499,2.10095,2653.8,2653.7,0.00564919]
[1750112333591,0.75335,2653.8,2653.7,0.00564919]
[1750112333995,1.37194,2653.9,2653.8,0.75335]
[1750112335594,0.6186,2653.9,2653.8,0.75335]
[1750112335794,0.6186,2653.9,2653.7,0.00564919]
[1750112335795,0.82065406,2654.1,2654.0,0.7533]
[1750112336192,0.06737406,2654.1,2654.0,0.7533]
[1750112336486,0.06737406,2654.1,2653.7,3.76948919]
[1750112336487,0.00564919,2654.2,2654.1,0.75327]
[1750112336691,0.75888919,2654.2,2654.1,0.75327]
[1750112336894,0.00564919,2654.2,2654.1,0.75327]
[1750112337293,0.00564919,2654.2,2654.1,3.96107]
[1750112337596,0.00564919,2654.2,2654.1,4.59077]
[1750112338201,0.00564919,2654.2,2654.1,12.58690198]
[1750112340499,0.00564919,2654.2,2654.1,9.59077]
[1750112342297,0.00564919,2654.2,2654.1,12.59032839]
[1750112343398,0.00564919,2654.2,2654.1,4.59077]
[1750112343701,0.00564919,2654.2,2654.1,10.07207]
[1750112344400,0.07302325,2654.2,2654.1,10.07207]
[1750112345198,0.07302325,2654.2,2654.1,33.34907]
[1750112346001,0.07302325,2654.2,2654.1,3.96107]
[1750112346188,0.07302325,2654.2,2654.1,33.34807]
[1750112346797,0.07302325,2654.2,2654.1,38.13685618]
[1750112347195,0.07302325,2654.2,2654.1,3.96107]
[1750112347395,0.07302325,2654.2,2654.1,33.34807]
[1750112349195,3.25e-06,2654.2,2654.1,38.34807]
[1750112349398,3.25e-06,2654.2,2654.1,41.34762839]
[1750112349996,3.25e-06,2654.2,2654.1,6.96062839]
[1750112350303,3.25e-06,2654.2,2654.1,27.23607]
[1750112351408,3.25e-06,2654.2,2654.1,28.49667]
[1750112352505,0.00564919,2654.4,2654.3,0.75321]
[1750112352702,0.00564919,2654.4,2654.3,24.02721]
[1750112353100,0.00564919,2654.4,2654.3,25.90651]
[1750112353406,0.00564919,2654.4,2654.3,26.58291]
[1750112355500,0.00564919,2654.4,2654.3,24.02721]
[1750112356900,0.00564919,2654.4,2654.3,25.30941]
[1750112359609,0.07302325,2654.4,2654.3,25.30941]
[1750112359798,3.25e-06,2654.4,2654.3,28.30896839]
[1750112360397,3.25e-06,2654.4,2654.3,25.30941]
[1750112361295,3.25e-06,2654.4,2654.3,28.30896839]
[1750112362006,3.25e-06,2654.4,2654.3,25.30941]
[1750112362398,2.44e-06,2654.6,2654.5,0.75316]
[1750112362599,2.44e-06,2654.6,2654.5,38.12274618]
[1750112362998,2.44e-06,2654.6,2654.5,39.76657562]
[1750112363701,2.44e-06,2654.6,2654.5,39.46554618]
[1750112364896,2.44e-06,2654.6,2654.5,13.0637089]
[1750112365204,2.44e-06,2654.6,2654.5,33.33196]
[1750112366708,2.44e-06,2654.6,2654.5,36.3307089]
[1750112369809,2.44e-06,2654.6,2654.5,33.33196]
[1750112371913,0.75313244,2654.6,2654.5,6.103]
[1750112372107,0.75321,2654.3,2654.2,0.75322]
[1750112372411,3.2078,2654.3,2653.9,3.2078]
[1750112372605,3.2078,2654.3,2654.0,0.75329]
[1750112372606,0.75328,2654.1,2654.0,0.75329]
[1750112372997,6.2478,2654.1,2654.0,0.75329]
[1750112374009,7.00107,2654.1,2654.0,0.75329]
[1750112374212,6.2478,2654.1,2654.0,0.75329]
[1750112376110,1.2478,2654.1,2654.0,0.75329]
[1750112376311,1.2478,2654.1,2653.9,3.2078]
[1750112376514,1.2478,2654.1,2654.0,0.7533]
[1750112377014,1.2784,2654.2,2654.1,0.75327]
[1750112377313,0.6582,2654.2,2654.1,0.75327]
[1750112377517,0.6582,2654.2,2654.0,6.85728]
[1750112377710,2.07807,2654.1,2654.0,29.37]
[1750112377904,0.7533,2654.0,2653.9,3.2078]
[1750112378114,2.0781,2654.0,2653.9,3.2078]
[1750112378409,2.0781,2654.0,2653.9,3.96113]
[1750112379108,2.0781,2654.0,2653.9,3.2078]
[1750112380013,2.0781,2654.0,2653.9,3.96113]
[1750112380507,2.0781,2654.0,2653.9,3.2078]
[1750112380713,2.0781,2654.0,2653.9,3.96113]
[1750112380909,2.0781,2654.0,2653.9,3.2078]
[1750112381113,0.75336,2653.8,2653.7,0.00564919]
[1750112381424,0.7535,2653.3,2653.2,6.105]
[1750112381712,0.75353,2653.2,2653.1,3.2078]
[1750112381917,2.02703,2653.2,2653.1,3.2078]
[1750112382422,0.75358,2653.0,2652.9,0.00564919]
[1750112385518,7.04308,2653.0,2652.9,0.00564919]
[1750112385720,0.75372,2652.5,2652.4,73.52074]
[1750112386428,0.75372,2652.5,2652.4,72.767]
[1750112387227,0.75372,2652.5,2652.4,73.52075]
[1750112389133,0.6792,2652.6,2652.5,0.75372]
[1750112389519,1.4329,2652.6,2652.5,0.75372]
[1750112389722,0.7536,2653.0,2652.9,0.75358]
[1750112390023,0.7536,2653.0,2652.6,0.75369]
[1750112390024,0.75367,2652.7,2652.6,0.75369]
[1750112390224,0.75372,2652.6,2652.5,0.75371]
[1750112390423,0.75372,2652.6,2652.5,24.02771]
[1750112390821,0.75372,2652.6,2652.5,23.274]
[1750112391024,0.75372,2652.5,2652.4,10.06455]
[1750112391328,1.43602,2652.5,2652.4,9.3108]
[1750112391822,0.75378,2652.3,2652.2,0.00564919]
[1750112393421,4.62608,2652.3,2652.2,0.00564919]
[1750112398632,4.62608,2652.3,2652.2,0.75945919]
[1750112399133,4.62608,2652.3,2652.2,0.00564919]
[1750112399626,3.96158,2652.3,2652.2,0.75945919]
[1750112399819,3.96158,2652.3,2652.2,0.00564919]
[1750112402448,0.75392,2651.8,2651.7,1.9243]
[1750112402650,0.754,2651.6,2651.5,0.75399]
[1750112403041,0.754,2651.6,2651.5,1.98339]
[1750112403242,0.75396,2651.8,2651.7,0.75394]
[1750112403749,3.21344919,2652.0,2651.6,4.78878618]
[1750112403952,3.96733919,2652.0,2651.9,0.75389]
[1750112404740,3.96733919,2652.0,2651.9,1.98329]
[1750112404947,0.75389,2651.9,2651.8,0.6605]
[1750112405140,0.75398,2651.6,2651.5,25.37892919]
[1750112405348,0.75398,2651.7,2651.6,0.75395]
[1750112406141,0.75398,2651.6,2651.5,26.05403919]
[1750112406555,0.75398,2651.6,2651.5,2.77503919]
[1750112407444,0.75397,2651.7,2651.6,0.75396]
[1750112407646,0.75395,2651.8,2651.7,0.75392]
[1750112408252,0.00564919,2652.0,2651.7,1.2664]
[1750112408443,0.00564919,2652.0,2651.9,8.75047618]
[1750112408950,0.00564919,2652.0,2651.9,10.01687618]
[1750112412750,0.75951919,2652.0,2651.9,5.22809]
[1750112412957,0.75951919,2652.0,2651.9,23.279]
[1750112413148,0.75951919,2652.0,2651.9,0.75389]
[1750112413349,0.00564919,2652.0,2651.9,0.75389]
[1750112413656,0.00564919,2652.0,2651.9,3.96169]
[1750112413851,0.00564919,2652.0,2651.9,5.20859]
[1750112416455,3.2078,2652.6,2652.5,0.75372]
[1750112416659,3.2078,2652.6,2652.0,3.17775]
[1750112416845,1.88442,2652.4,2652.0,1.2931]
[1750112417065,0.75383,2652.2,2652.1,0.75381]
[1750112418151,0.6686,2652.3,2652.2,0.75381]
[1750112418450,1.42238,2652.3,2652.2,0.75381]
[1750112418753,0.6686,2652.3,2652.2,0.75381]
[1750112419056,0.00564919,2652.4,2652.3,0.75378]
[1750112420455,0.75939919,2652.4,2652.3,0.75378]
[1750112421947,0.00564919,2652.4,2652.3,0.75378]
[1750112423560,0.00564919,2652.4,2652.3,2.09518]
[1750112423950,0.6686,2652.7,2652.6,0.7537]
[1750112424258,3.2078,2652.9,2652.8,0.75364]
[1750112424464,0.6771,2653.2,2653.1,0.75355]
[1750112425166,0.75351,2653.3,2653.2,0.7535]
[1750112425358,0.75351,2653.3,2653.1,9.3078]
[1750112425359,0.75353,2653.2,2653.1,10.06134]
[1750112425560,0.00564919,2653.4,2653.3,0.7535]
[1750112426561,0.00564919,2653.4,2653.3,2.6966]
[1750112429164,0.6751,2653.8,2653.7,0.75338]
[1750112429465,0.75338,2653.7,2653.6,6.85341]
[1750112429851,0.75341,2653.6,2653.5,3.2078]
[1750112430052,0.75351,2653.3,2653.2,3.9613]
[1750112431159,0.75351,2653.3,2653.2,3.2078]
[1750112431368,0.75349,2653.4,2653.3,0.75348]
[1750112433166,0.75345,2653.5,2653.4,0.75343]
[1750112433559,0.75349,2653.4,2653.3,0.75348]
[1750112434857,0.7535,2653.3,2653.2,3.96131]
[1750112435165,0.75358,2653.0,2652.9,0.75922919]
[1750112436064,3.30846,2653.2,2653.1,0.75355]
[1750112436758,0.75358,2653.1,2653.0,0.75356]
[1750112437569,0.75358,2653.0,2652.9,0.75923919]
[1750112440475,0.75358,2653.0,2652.9,0.00564919]
[1750112442670,0.75358,2653.0,2652.9,0.75925919]
[1750112443369,0.75358,2653.0,2652.9,0.00564919]
[1750112444671,0.75358,2653.0,2652.3,9.9169]
[1750112444672,1.8842,2652.7,2652.3,9.9169]
[1750112444873,0.75375,2652.4,2652.3,9.3018]
[1750112445267,0.75375,2652.4,2652.3,10.05558]
[1750112445769,1.42734,2652.6,2652.5,0.75372]
[1750112446676,0.75367,2652.7,2652.6,0.7537]
[1750112454783,0.75369,2652.6,2652.5,1.3801]
[1750112455080,0.75372,2652.5,2652.4,3.2858148]
[1750112456176,0.75375,2652.4,2652.3,10.67996]
[1750112456379,0.75375,2652.4,2652.3,33.94096]
[1750112458283,0.75375,2652.4,2652.3,35.29796]
[1750112458878,0.75373,2652.6,2652.5,0.75369]
[1750112459082,0.75375,2652.5,2652.4,0.75373]
[1750112460487,0.75375,2652.4,2652.3,3.2078]
[1750112460785,1.39235,2652.4,2652.3,3.2078]
[1750112462179,1.39235,2652.4,2652.3,3.96157]
[1750112462384,3.2078,2652.7,2652.5,0.75372]
[1750112462585,3.96149,2652.7,2652.6,0.75369]
[1750112466096,0.75369,2652.6,2652.5,6.8477]
[1750112466399,7.6240748,2652.7,2652.3,33.31357]
[1750112466599,0.75375,2652.4,2652.3,33.31357]
[1750112467393,0.75375,2652.4,2652.3,9.3018]
[1750112468396,0.7538,2652.2,2652.1,0.75946919]
[1750112468603,0.7538,2652.2,2652.1,0.00564919]
[1750112469199,3.01901786,2652.2,2652.1,0.00564919]
[1750112469399,0.75386,2652.0,2651.9,3.2078]
[1750112470090,2.04256,2652.0,2651.9,3.2078]
[1750112470598,0.75392,2651.8,2651.7,6.09964919]
[1750112471100,0.75392,2651.8,2651.7,0.00564919]
[1750112471301,3.69635835,2651.8,2651.7,0.00564919]
[1750112471601,2.72032,2651.8,2651.7,0.00564919]
[1750112474002,1.43162,2651.8,2651.7,0.00564919]
[1750112477501,1.43162,2651.8,2651.7,0.75959919]
[1750112477702,0.75392,2651.8,2651.7,0.75959919]
[1750112480406,0.7539,2652.0,2651.9,0.75386]
[1750112480998,0.75392,2651.8,2651.7,0.00564919]
[1750112482407,0.75392,2651.8,2651.7,0.75959919]
[1750112482806,0.75392,2651.8,2651.7,2.05869919]
[1750112483806,0.7539,2652.0,2651.9,0.75386]
[1750112484002,0.6278,2652.1,2652.0,0.75386]
[1750112484306,0.75939919,2652.4,2652.3,0.75378]
[1750112484507,0.75939919,2652.4,2652.3,9.3748648]
[1750112485104,0.75939919,2652.4,2652.3,10.0242648]
[1750112485509,0.75939919,2652.4,2652.3,6.089]
[1750112486103,0.75939919,2652.4,2652.3,6.84278]
[1750112487209,0.75939919,2652.4,2652.3,6.089]
[1750112488210,7.62992399,2652.4,2652.0,0.6668]
[1750112488396,0.75383,2652.1,2652.0,1.42065]
[1750112488601,0.75383,2652.1,2652.0,0.6668]
[1750112489305,0.75383,2652.1,2652.0,1.42066]
[1750112489506,3.96720919,2652.4,2652.3,0.75378]
[1750112490203,3.21344919,2652.4,2652.3,2.70428]
[1750112490404,0.00564919,2652.4,2652.3,2.70428]
[1750112491107,0.00564919,2652.4,2652.3,8.79328]
[1750112491509,1.88412,2652.8,2652.4,0.7537]
[1750112491705,0.75369,2652.6,2652.5,3.2078]
[1750112491907,0.75378,2652.3,2652.2,6.089]
[1750112494820,0.75383,2652.1,2652.0,2.08854]
[1750112495014,0.75383,2652.1,2652.0,1.42064]
[1750112496611,0.75383,2652.1,2652.0,0.6668]
[1750112496811,0.75383,2652.1,2652.0,1.42066]
[1750112498112,0.75381,2652.3,2652.2,0.75378]
[1750112498309,2.54551,2652.4,2652.0,1.9444]
[1750112498510,0.75383,2652.1,2652.0,2.69824]
[1750112498811,0.75386,2652.0,2651.9,10.05067]
[1750112499016,0.75385,2652.1,2652.0,0.75381]
[1750112500418,0.75386,2652.0,2651.9,3.2078]
[1750112500710,0.75392,2651.8,2651.7,0.00564919]
[1750112502915,0.75392,2651.8,2651.7,0.75959919]
[1750112503117,2.54599,2652.0,2651.7,0.75959919]
[1750112503118,0.75389,2651.9,2651.8,0.75389]
[1750112503619,0.75389,2651.9,2651.8,2.74449]
[1750112504023,15.33231769,2652.5,2651.8,1.9906]
[1750112504327,0.75386,2652.1,2652.0,0.75384]
[1750112505020,0.75382,2652.2,2652.1,0.7538]
[1750112505326,0.75379,2652.4,2652.1,3.2078]
[1750112505523,3.96718919,2652.5,2652.4,0.75375]
[1750112506926,3.21344919,2652.5,2652.4,0.75375]
[1750112507119,0.00564919,2652.5,2652.4,3.96155]
[1750112507320,0.00564919,2652.5,2652.4,5.24215]
[1750112508226,0.75936919,2652.5,2652.4,5.24215]
[1750112508728,0.75936919,2652.5,2652.4,3.96155]
[1750112508924,0.00564919,2652.5,2652.4,3.96155]
[1750112509317,0.00564919,2652.5,2652.4,5.30655]
[1750112510326,0.75936919,2652.5,2652.4,3.2078]
[1750112510533,0.75936919,2652.5,2652.4,10.04255]
[1750112511224,0.00564919,2652.5,2652.4,10.04255]
[1750112511819,0.75936919,2652.5,2652.4,10.04255]
[1750112512023,0.00564919,2652.5,2652.4,10.04255]
[1750112512224,0.75936919,2652.5,2652.4,10.04255]